bitfinex-derivatives/quotes_ETHF0:USTF0_20240924
["timestamp","ask_amount","ask_price","bid_price","bid_amount"]
[1727200246733,0.398,2651.7,2651.6,0.37714]
[1727200247030,0.398,2651.7,2651.4,2.65]
[1727200247229,0.398,2651.7,2651.5,1.088]
[1727200247230,0.77514,2651.7,2651.5,1.088]
[1727200247529,0.37717,2651.5,2651.3,3.2078]
[1727200247719,1.96237154,2651.4,2651.3,3.58499]
[1727200247919,1.96237154,2651.5,2651.3,6.23499]
[1727200248233,2.83848188,2651.7,2651.4,0.37717]
[1727200248234,0.77514,2651.7,2651.4,0.37717]
[1727200248424,0.77514,2651.7,2651.6,2.65]
[1727200248621,0.77513,2651.7,2651.6,2.65]
[1727200249426,0.77513,2651.7,2651.4,2.65]
[1727200249427,0.37716,2651.5,2651.4,2.65]
[1727200249940,3.7712,2651.5,2651.2,3.738]
[1727200250234,0.37718,2651.4,2651.2,3.738]
[1727200250738,0.37719,2651.3,2651.2,2.65]
[1727200251830,2.33956154,2651.3,2651.2,2.65]
[1727200252031,0.37719,2651.3,2651.2,2.65]
[1727200252233,2.33956154,2651.3,2651.2,2.65]
[1727200252433,0.37719,2651.3,2651.2,2.65]
[1727200253335,2.33956154,2651.3,2651.2,2.65]
[1727200256131,0.37719,2651.3,2651.2,2.65]
[1727200256839,1.96237154,2651.6,2651.4,0.94294]
[1727200257031,1.96237154,2651.9,2651.8,0.37712]
[1727200257233,2.33946154,2652.0,2651.5,3.738]
[1727200257537,0.37709,2652.0,2651.9,2.65]
[1727200258039,6.11066154,2652.0,2651.8,0.37711]
[1727200258339,2.33946154,2652.0,2651.8,0.37712]
[1727200258836,2.33946154,2652.0,2651.7,2.65]
[1727200259039,2.33946154,2652.0,2650.0,9.95715119]
[1727200259040,1.96237154,2651.8,2651.2,4.138]
[1727200259239,0.37718,2651.4,2651.1,3.2078]
[1727200259541,1.96237154,2651.6,2651.2,2.65]
[1727200259743,1.96237154,2651.6,2651.2,3.02719]
[1727200259744,0.37717,2651.4,2651.2,3.02719]
[1727200259928,0.3841,2651.5,2651.4,0.37717]
[1727200260129,0.3841,2651.5,2651.3,0.37718]
[1727200260342,0.3841,2651.5,2651.2,2.65]
[1727200260343,0.76126,2651.5,2651.2,2.65]
[1727200260538,2.72364154,2651.5,2651.2,2.65]
[1727200260739,0.37718,2651.4,2651.2,2.65]
[1727200261333,0.37719,2651.3,2651.2,2.65]
[1727200261529,2.34647154,2651.5,2651.1,3.58501]
[1727200261530,2.34647154,2651.5,2651.1,3.2078]
[1727200261736,0.7684,2651.2,2651.1,3.2078]
[1727200262136,0.7684,2651.2,2650.8,5.8578]
[1727200262137,0.3912,2651.2,2650.8,5.8578]
[1727200262339,0.37722,2651.1,2650.8,6.23506]
[1727200262540,0.37723,2651.0,2650.8,2.65]
[1727200262738,1.96237154,2651.3,2650.8,5.8578]
[1727200262943,5.64828188,2651.4,2651.2,0.3772]
[1727200262944,1.96237154,2651.4,2651.2,0.3772]
[1727200263148,1.14807,2651.5,2651.2,0.3772]
[1727200263343,0.7709,2651.5,2651.1,2.65]
[1727200263535,2.46823631,2651.2,2651.1,0.37722]
[1727200263738,0.7709,2651.5,2651.2,0.3772]
[1727200263739,2.46823631,2651.3,2651.2,0.3772]
[1727200263943,2.46823631,2651.4,2651.3,0.37719]
[1727200264158,2.46810376,2651.5,2651.4,0.37717]
[1727200264342,2.46810376,2651.5,2651.4,3.58497]
[1727200264644,2.46810376,2651.5,2651.4,10.00617]
[1727200265246,2.46810376,2651.6,2651.5,0.37716]
[1727200265445,0.77712,2651.8,2651.6,0.37714]
[1727200265641,0.4,2651.8,2651.7,3.02713]
[1727200266045,2.9506065,2652.0,2651.9,0.3771]
[1727200266243,7.44097426,2652.2,2651.9,2.65]
[1727200266244,3.3506065,2652.2,2651.9,2.65]
[1727200266443,3.3506065,2652.2,2651.9,3.0271]
[1727200266644,3.7276765,2652.2,2651.9,3.0271]
[1727200266948,3.7276765,2652.2,2651.2,1.088]
[1727200266949,0.94276,2651.9,2651.2,1.088]
[1727200267148,2.46820196,2651.3,2651.2,3.02719]
[1727200267750,2.46820196,2651.3,2651.2,3.0272]
[1727200268048,0.79658,2651.4,2651.2,3.0272]
[1727200268253,0.4194,2651.4,2651.3,0.37719]
[1727200268748,0.37719,2651.3,2651.2,2.65]
[1727200268960,0.37721,2651.2,2651.0,1.46522]
[1727200269139,2.468784,2651.1,2651.0,1.46522]
[1727200269340,2.846004,2651.1,2651.0,1.088]
[1727200269653,2.468784,2651.1,2651.0,1.46523]
[1727200269851,2.468784,2651.1,2651.0,4.14923]
[1727200270153,3.58499,2651.3,2651.1,0.3772]
[1727200270947,0.3772,2651.2,2651.1,0.3772]
[1727200271947,5.18313987,2651.3,2651.1,0.3772]
[1727200272146,5.56033987,2651.3,2651.1,3.0272]
[1727200272550,0.3772,2651.2,2651.1,3.0272]
[1727200273054,1.48149489,2651.2,2651.1,13.74226]
[1727200273350,4.0445,2651.8,2651.4,1.32011]
[1727200273351,1.48149489,2651.5,2651.4,1.32011]
[1727200273547,0.406,2651.8,2651.7,0.37713]
[1727200273548,1.48149489,2651.8,2651.7,0.37713]
[1727200273751,1.48149489,2651.8,2651.7,1.46513]
[1727200273950,1.48149489,2651.8,2651.7,0.37713]
[1727200274152,1.97533987,2651.9,2651.7,2.65]
[1727200274351,1.97533987,2651.9,2651.8,0.37712]
[1727200274663,2.35242987,2652.0,2651.8,0.37711]
[1727200275151,1.97533987,2652.0,2651.7,2.65]
[1727200275360,0.37711,2651.9,2651.7,0.37712]
[1727200275554,0.78511,2651.9,2651.7,0.37712]
[1727200275756,1.97533987,2652.0,2651.7,0.37712]
[1727200275757,1.4808642,2651.8,2651.7,6.4212]
[1727200275955,1.4808642,2651.8,2651.7,2.65]
[1727200276251,1.4808642,2651.8,2651.7,4.11413]
[1727200277251,1.4808642,2651.8,2651.7,2.65]
[1727200277559,1.97533987,2652.6,2652.2,0.94266]
[1727200277755,1.97533987,2652.6,2652.5,3.02702]
[1727200277756,1.97384481,2652.6,2652.5,3.02702]
[1727200278063,1.97384481,2652.8,2652.5,2.65]
[1727200278262,2.46917484,2652.7,2652.5,2.65]
[1727200278447,2.46917484,2652.7,2652.6,0.377]
[1727200278653,2.46917484,2652.8,2652.7,0.37699]
[1727200279360,0.4089,2652.9,2652.7,0.37699]
[1727200279664,2.46466099,2652.8,2652.7,0.37698]
[1727200280264,2.46466099,2652.8,2652.4,1.087]
[1727200280467,0.4089,2652.9,2652.4,1.46403]
[1727200280468,1.97176591,2652.5,2652.4,1.46403]
[1727200280652,1.97176591,2652.5,2652.4,0.37703]
[1727200280963,1.97176591,2652.5,2652.3,3.2078]
[1727200281164,1.97176591,2652.5,2652.4,0.37703]
[1727200281555,1.97176591,2652.6,2652.5,0.37702]
[1727200281773,2.84164099,2652.8,2652.5,0.37701]
[1727200281976,4.15016,2653.1,2652.6,0.377]
[1727200281977,2.46466099,2652.7,2652.6,0.377]
[1727200282264,2.38444952,2653.1,2653.0,0.37695]
[1727200282559,0.4136,2653.1,2653.0,1.46395]
[1727200282759,0.4136,2653.1,2652.9,3.2078]
[1727200282952,1.97084952,2653.0,2652.9,3.2078]
[1727200283157,0.37695,2653.0,2652.9,3.2078]
[1727200283360,2.87826099,2653.1,2652.9,3.2078]
[1727200283552,2.87826099,2653.1,2652.4,6.4678]
[1727200283553,1.96919267,2653.0,2652.4,6.4678]
[1727200283757,2.35969267,2652.9,2652.7,0.37698]
[1727200284356,0.37699,2652.7,2652.4,3.2078]
[1727200284562,1.96919267,2652.7,2652.4,3.2078]
[1727200284757,0.37701,2652.6,2652.2,0.37705]
[1727200284957,0.4136,2652.5,2652.3,0.37704]
[1727200285158,0.79062,2652.5,2652.0,6.4678]
[1727200285459,0.37707,2652.2,2652.0,3.2078]
[1727200285663,0.392,2652.1,2651.8,1.087]
[1727200285863,0.392,2652.1,2651.8,0.37711]
[1727200285864,0.7965,2652.1,2651.8,0.37711]
[1727200286361,0.7965,2652.1,2651.9,0.3771]
[1727200289063,1.17357,2652.1,2651.8,0.37711]
[1727200289672,1.17357,2652.1,2651.3,1.04765013]
[1727200289673,0.37712,2651.8,2651.5,3.63715]
[1727200289970,3.70841267,2652.1,2651.5,3.26]
[1727200289971,0.3841,2651.7,2651.5,3.26]
[1727200290170,0.3841,2651.7,2651.6,0.37714]
[1727200290578,0.3841,2651.7,2651.5,3.63715]
[1727200290869,0.3841,2651.7,2651.5,3.26]
[1727200291071,0.3841,2651.7,2651.3,3.2078]
[1727200291276,0.3841,2651.7,2651.1,7.398]
[1727200291277,0.37717,2651.4,2651.1,4.347]
[1727200291581,0.37717,2651.4,2651.1,3.63721]
[1727200291761,0.37717,2651.5,2651.1,3.26]
[1727200291965,0.37717,2651.4,2651.1,3.63721]
[1727200292167,1.20757,2651.5,2651.1,3.26]
[1727200292368,0.37717,2651.4,2651.1,3.26]
[1727200292678,0.8304,2651.5,2651.1,3.26]
[1727200292679,1.20757,2651.5,2651.2,0.3772]
[1727200293963,0.37717,2651.4,2651.2,0.3772]
[1727200294370,1.20757,2651.5,2651.2,0.3772]
[1727200294767,0.37717,2651.4,2651.1,3.6372]
[1727200295766,0.37718,2651.4,2651.1,3.6372]
[1727200296469,0.3772,2651.3,2651.1,3.26]
[1727200296666,0.94298,2651.3,2650.5,7.398]
[1727200296872,0.37724,2651.0,2650.7,0.37727]
[1727200297070,0.8183,2650.9,2650.7,0.37727]
[1727200297276,1.2272,2650.9,2650.7,0.37727]
[1727200297578,1.2272,2650.9,2650.8,0.37726]
[1727200297768,1.2272,2650.9,2650.5,4.347]
[1727200297968,1.2272,2650.9,2650.8,0.37726]
[1727200298666,0.426,2650.9,2650.8,3.63726]
[1727200300374,0.426,2650.9,2650.7,3.2078]
[1727200300575,0.77196,2650.8,2650.7,3.2078]
[1727200301484,0.3947,2650.8,2650.7,3.58507]
[1727200301684,0.3947,2650.8,2650.7,3.2078]
[1727200301883,0.3947,2650.8,2650.5,3.26]
[1727200301884,0.37729,2650.6,2650.5,3.26]
[1727200302179,0.3947,2650.8,2650.5,3.26]
[1727200302180,0.76428,2650.7,2650.5,3.26]
[1727200302585,0.37729,2650.6,2650.5,3.26]
[1727200305089,0.387,2650.7,2650.5,3.26]
[1727200305278,0.3947,2650.8,2650.7,0.37727]
[1727200305473,0.426,2650.9,2650.8,0.37726]
[1727200306172,0.80325,2650.9,2650.7,3.58507]
[1727200306371,0.426,2650.9,2650.8,0.37726]
[1727200306575,0.426,2650.9,2650.8,3.63726]
[1727200306877,0.4216,2651.1,2651.0,0.37723]
[1727200307488,0.408,2651.2,2651.1,0.37722]
[1727200307788,0.408,2651.2,2651.0,3.58503]
[1727200307971,0.78521,2651.2,2651.0,3.58503]
[1727200308172,0.78521,2651.2,2651.1,0.37722]
[1727200308372,0.408,2651.2,2651.1,0.37722]
[1727200308580,0.7852,2651.2,2651.0,3.58502]
[1727200308783,0.37722,2651.1,2651.0,3.2078]
[1727200309082,0.37726,2650.8,2650.6,1.086]
[1727200309381,0.37726,2650.8,2650.6,1.46328]
[1727200309581,0.3773,2650.6,2650.4,4.51531]
[1727200309782,0.3773,2650.6,2650.4,0.37731]
[1727200310377,6.9806,2650.5,2649.7,0.088]
[1727200310576,0.37738,2650.0,2649.8,0.3774]
[1727200310783,0.37739,2649.9,2649.7,0.37741]
[1727200311077,0.37738,2650.0,2649.8,0.3774]
[1727200311688,0.37736,2650.1,2649.9,0.37738]
[1727200312083,0.78486,2650.1,2649.9,0.37738]
[1727200312586,0.4075,2650.1,2650.0,0.37737]
[1727200313281,0.37732,2650.4,2650.3,0.37733]
[1727200313486,0.37732,2650.4,2650.0,3.26]
[1727200313690,0.37732,2650.4,2650.2,0.37733]
[1727200313878,0.37732,2650.4,2650.3,0.37733]
[1727200314078,3.2078,2650.5,2650.1,0.37735]
[1727200314386,3.2078,2650.5,2650.0,3.26]
[1727200314682,0.37734,2650.3,2650.1,0.37735]
[1727200315679,3.2078,2650.5,2650.0,3.26]
[1727200315883,0.37734,2650.3,2650.1,0.37735]
[1727200316079,3.2078,2650.5,2650.0,3.63736]
[1727200316080,0.37735,2650.2,2650.0,3.63736]
[1727200316273,0.37735,2650.2,2650.1,0.37736]
[1727200317081,0.37734,2650.2,2650.1,0.37736]
[1727200317290,0.37734,2650.3,2650.1,0.37736]
[1727200317785,0.37732,2650.4,2650.2,0.37733]
[1727200317984,0.3993,2650.6,2650.0,3.26]
[1727200318178,0.37733,2650.4,2650.2,0.37734]
[1727200318780,1.34254,2650.6,2650.0,3.26]
[1727200318781,0.3993,2650.6,2650.0,3.26]
[1727200319178,0.37732,2650.4,2650.2,0.37733]
[1727200319578,3.2078,2650.5,2650.4,1.32062]
[1727200319787,0.19419675,2651.5,2651.0,0.37722]
[1727200319788,0.3772,2651.3,2651.0,0.37722]
[1727200319984,0.3961,2651.4,2650.7,6.4678]
[1727200320187,0.37722,2651.1,2650.8,0.37724]
[1727200320680,0.37722,2651.1,2650.9,0.37724]
[1727200321185,4.54686,2651.4,2650.9,0.37724]
[1727200321186,0.37721,2651.2,2650.9,0.37724]
[1727200321689,0.37719,2651.3,2651.0,0.37722]
[1727200322289,3.6039,2651.4,2650.7,6.4678]
[1727200322487,0.3772,2651.3,2650.7,6.4678]
[1727200322787,3.6039,2651.4,2651.1,0.37721]
[1727200322788,3.98108,2651.4,2651.1,0.37721]
[1727200322990,3.6039,2651.4,2651.0,3.26]
[1727200323194,0.3961,2651.4,2651.3,0.37719]
[1727200323493,0.3948,2651.5,2651.3,0.37719]
[1727200324095,3.2078,2651.7,2651.3,3.26]
[1727200324385,3.58494,2651.7,2651.5,0.37716]
[1727200325394,0.37714,2651.7,2651.3,3.26]
[1727200325689,0.37714,2651.7,2651.5,0.37716]
[1727200326293,0.37713,2651.8,2651.5,0.37716]
[1727200326495,0.37713,2651.7,2651.5,0.37716]
[1727200327496,0.4119,2652.1,2651.5,0.37716]
[1727200327497,1.35888148,2652.7,2652.3,0.37704]
[1727200327791,0.4256,2652.7,2652.3,3.26]
[1727200327992,0.4256,2652.7,2652.6,0.377]
[1727200328184,0.4256,2652.7,2652.5,0.37701]
[1727200328491,0.4256,2652.7,2652.3,3.6718]
[1727200328700,0.4256,2652.7,2652.5,0.377]
[1727200328883,0.4256,2652.7,2652.6,0.377]
[1727200329380,0.4256,2652.7,2652.5,0.37701]
[1727200329583,0.4256,2652.7,2652.6,0.377]
[1727200330090,0.4053,2652.9,2652.8,0.37697]
[1727200330388,0.4053,2652.9,2652.6,3.26]
[1727200330389,0.4053,2652.9,2652.7,0.37699]
[1727200331382,0.4053,2652.9,2652.5,3.2078]
[1727200331587,0.98188148,2652.8,2652.3,1.086]
[1727200331885,0.98188148,2652.7,2652.2,3.2078]
[1727200332086,0.98188148,2652.7,2652.3,0.37704]
[1727200332087,1.35888148,2652.7,2652.3,0.37704]
[1727200332391,0.98188148,2652.8,2652.4,0.37702]
[1727200332589,1.35886148,2652.8,2652.4,0.37702]
[1727200332791,1.35887148,2652.7,2652.3,0.37704]
[1727200332988,1.35887148,2652.7,2652.2,3.2078]
[1727200332989,0.98188148,2652.7,2652.2,3.2078]
[1727200333188,1.35887148,2652.7,2652.2,3.2078]
[1727200333389,1.35887148,2652.7,2652.3,0.37705]
[1727200333588,0.377,2652.6,2652.3,0.37705]
[1727200333790,1.35887148,2652.7,2652.4,0.37702]
[1727200334488,0.37699,2652.7,2652.4,0.37702]
[1727200334995,0.37699,2652.7,2652.2,3.2078]
[1727200335202,0.98188148,2652.8,2652.3,3.26]
[1727200335495,4.61528148,2653.1,2653.0,0.37695]
[1727200335686,0.4256,2653.1,2652.9,0.37695]
[1727200336092,0.4256,2653.1,2653.0,0.37695]
[1727200336391,0.4256,2653.1,2652.6,3.26]
[1727200336392,0.4256,2653.1,2652.9,0.37696]
[1727200336783,0.388,2653.4,2652.6,3.26]
[1727200336784,1.36988148,2653.4,2652.8,3.2078]
[1727200336984,0.388,2653.4,2652.8,4.2978]
[1727200337189,1.43158148,2653.5,2652.8,4.2978]
[1727200337190,0.98188148,2653.5,2653.4,0.37689]
[1727200337497,0.98188148,2653.8,2653.1,3.2078]
[1727200337694,0.98188148,2653.8,2653.5,0.37687]
[1727200337695,1.35872148,2653.8,2653.5,0.37687]
[1727200338192,0.98188148,2653.8,2653.5,0.37687]
[1727200338395,0.37687,2653.6,2653.1,3.2078]
[1727200338596,0.37693,2653.1,2652.9,0.37695]
[1727200338896,2.46466099,2653.2,2652.7,1.09]
[1727200339200,1.46995398,2652.8,2652.7,4.67479]
[1727200339590,1.46995398,2652.8,2652.7,1.46699]
[1727200339897,1.46995398,2652.9,2652.8,1.31941]
[1727200340101,1.46995398,2652.9,2652.8,0.37697]
[1727200341393,1.46995398,2653.0,2652.9,0.37696]
[1727200342900,1.46783509,2653.0,2652.9,0.37696]
[1727200343091,1.46783311,2653.0,2652.9,0.37696]
[1727200343293,2.33696937,2653.1,2652.9,0.37696]
[1727200343702,1.96003937,2653.1,2653.0,0.37695]
[1727200343999,2.33695937,2653.2,2653.0,0.37695]
[1727200344196,1.96003937,2653.2,2653.1,0.37693]
[1727200344396,2.40973937,2653.3,2653.2,0.37692]
[1727200344598,0.4497,2653.3,2653.2,0.37692]
[1727200344789,0.4497,2653.3,2652.8,0.94244]
[1727200344790,1.96003937,2653.6,2653.1,0.94234]
[1727200345101,1.46683526,2653.4,2653.3,0.3769]
[1727200345293,1.84371343,2653.4,2653.3,0.3769]
[1727200345597,1.46682343,2653.5,2653.4,0.37689]
[1727200345790,5.16783937,2653.7,2653.3,4.35]
[1727200345791,3.2078,2653.7,2653.3,4.35]
[1727200346111,0.8767,2653.9,2653.8,0.37683]
[1727200346394,0.8767,2653.9,2653.6,3.26]
[1727200346395,0.01,2654.5,2653.6,6.4678]
[1727200346702,0.01,2654.5,2653.9,0.37682]
[1727200346703,0.80277,2654.3,2653.9,0.37682]
[1727200347201,0.426,2654.3,2653.9,0.37682]
[1727200347398,0.426,2654.3,2653.9,0.37681]
[1727200347600,0.426,2654.3,2654.0,0.3768]
[1727200347897,3.2078,2654.1,2653.3,0.088]
[1727200348195,3.2078,2654.1,2652.9,1.09]
[1727200348196,3.2078,2653.6,2652.9,1.09]
[1727200348390,4.66350969,2654.3,2653.1,3.2078]
[1727200348391,3.2078,2653.9,2653.1,3.2078]
[1727200348592,3.2078,2653.9,2653.5,0.37687]
[1727200348800,3.58462,2653.9,2653.5,0.37687]
[1727200349002,3.58462,2653.9,2653.2,0.4456]
[1727200349003,0.37683,2653.8,2653.4,0.37688]
[1727200349592,0.37684,2653.8,2653.3,0.3769]
[1727200349792,3.657,2653.9,2653.2,0.4456]
[1727200349793,0.4485,2653.7,2653.2,0.82251]
[1727200350003,3.2078,2653.6,2653.2,0.37692]
[1727200350202,0.37687,2653.5,2653.1,1.46692]
[1727200350995,0.37689,2653.4,2653.1,1.09]
[1727200351195,0.37689,2653.4,2653.1,1.46693]
[1727200351504,0.3769,2653.4,2653.1,1.46693]
[1727200352009,0.37688,2653.5,2653.2,0.37692]
[1727200352197,3.2078,2653.6,2653.1,1.09]
[1727200352397,0.94219,2653.5,2653.0,1.46694]
[1727200352604,0.94219,2653.5,2653.0,1.09]
[1727200352803,0.37692,2653.2,2653.0,1.09]
[1727200353004,0.434,2653.4,2653.0,1.46694]
[1727200353210,0.3769,2653.3,2653.0,0.37694]
[1727200353504,0.8109,2653.4,2653.1,0.37692]
[1727200353903,0.37691,2653.3,2653.1,0.37692]
[1727200354303,0.37688,2653.5,2653.3,0.3769]
[1727200354904,3.58467,2653.6,2653.0,1.09]
[1727200355107,0.37688,2653.5,2653.3,0.3769]
[1727200355302,0.37688,2653.5,2653.2,0.37691]
[1727200355603,0.37688,2653.5,2653.3,0.3769]
[1727200356203,3.2078,2653.6,2653.0,1.09]
[1727200356399,3.2078,2653.6,2653.1,0.427]
[1727200356797,3.2078,2653.6,2653.2,0.37691]
[1727200356798,0.37689,2653.4,2653.2,0.37691]
[1727200357212,3.2078,2653.6,2653.1,0.427]
[1727200357404,3.2078,2653.6,2653.5,0.37687]
[1727200357902,3.2078,2653.6,2653.4,0.37688]
[1727200357903,3.58466,2653.6,2653.4,0.37688]
[1727200358608,3.2078,2653.6,2653.4,0.37688]
[1727200358807,3.58467,2653.6,2653.4,0.37688]
[1727200359003,3.2078,2653.6,2653.5,0.37687]
[1727200359211,3.58467,2653.6,2653.4,0.37689]
[1727200359407,3.2078,2653.6,2653.4,0.37689]
[1727200360005,3.58467,2653.6,2653.4,0.37689]
[1727200360205,0.37687,2653.5,2653.4,0.37689]
[1727200360615,3.58466,2653.6,2653.4,0.37689]
[1727200361007,3.2078,2653.6,2653.5,0.37687]
[1727200361408,3.2078,2653.6,2653.4,0.37688]
[1727200361611,0.8881,2653.7,2653.1,5.13811]
[1727200361816,3.2078,2653.9,2653.3,4.15005]
[1727200362005,3.2078,2653.9,2653.8,0.37683]
[1727200362205,0.37679,2654.1,2653.9,0.37681]
[1727200362417,4.5041,2654.2,2654.1,0.37679]
[1727200362716,0.419,2654.2,2654.1,0.37679]
[1727200364110,0.79578,2654.2,2654.0,0.37679]
[1727200364314,0.3768,2654.1,2653.6,3.2078]
[1727200364512,3.5846,2654.0,2653.8,0.37683]
[1727200364810,3.5846,2654.0,2653.2,4.68232698]
[1727200364811,0.37689,2653.5,2653.2,1.1]
[1727200365016,0.4475,2653.4,2653.2,1.1]
[1727200365217,0.3769,2653.3,2653.1,3.58473]
[1727200365419,0.3769,2653.3,2653.1,4.68472]
[1727200365715,0.3769,2653.3,2652.7,1.9069016]
[1727200365716,4.15008,2653.3,2652.7,0.4247]
[1727200365916,4.15008,2653.3,2652.6,5.238]
[1727200365917,0.37695,2653.0,2652.6,1.1]
[1727200366420,0.37695,2653.0,2652.7,0.37698]
[1727200366610,0.37695,2653.0,2652.6,1.1]
[1727200366611,0.9423,2653.2,2652.6,1.47699]
[1727200366814,3.2078,2653.0,2652.3,4.5576]
[1727200367014,0.82886,2652.9,2652.6,0.377]
[1727200367518,0.37698,2652.8,2652.5,0.37701]
[1727200367718,0.82886,2652.9,2652.6,0.377]
[1727200367915,0.37698,2652.8,2652.5,0.37701]
[1727200369415,1.35448969,2652.8,2652.5,0.37701]
[1727200369826,1.80637969,2652.9,2652.6,0.37699]
[1727200370023,0.37698,2652.8,2652.5,0.37701]
[1727200370208,0.37698,2652.8,2652.6,0.377]
[1727200370414,0.97750969,2652.8,2652.6,0.377]
[1727200371116,1.35448969,2652.8,2652.5,0.37701]
[1727200371317,0.97750969,2652.7,2652.6,0.37699]
[1727200371826,0.97750969,2652.7,2652.6,4.14659]
[1727200372618,1.35449969,2652.7,2652.6,3.7696]
[1727200372915,0.97750969,2652.7,2652.6,3.7696]
[1727200373121,0.97750969,2652.7,2652.6,0.377]
[1727200373314,1.84380343,2652.8,2652.6,0.377]
[1727200373315,1.46682343,2652.8,2652.6,4.1466]
[1727200373517,1.46682343,2652.7,2652.6,0.377]
[1727200373918,1.46682343,2652.7,2652.6,4.1466]
[1727200374323,1.46682343,2652.8,2652.7,0.37699]
[1727200375825,1.43755578,2652.9,2652.8,0.37697]
[1727200377123,0.4519,2652.9,2652.8,0.37697]
[1727200377314,0.98565578,2653.0,2652.9,0.37696]
[1727200377721,0.98565578,2653.1,2653.0,0.37695]
[1727200377921,0.98566766,2653.2,2653.0,3.7696]
[1727200378124,0.98566766,2653.2,2653.1,0.37693]
[1727200378327,1.88232343,2653.3,2653.2,0.37692]
[1727200379320,0.4155,2653.3,2653.2,0.37692]
[1727200382126,5.16783937,2653.6,2653.2,3.7688]
[1727200382331,0.98629593,2653.3,2653.2,4.57921]
[1727200382828,1.96003937,2653.5,2653.4,0.37689]
[1727200383220,1.97247156,2653.6,2653.5,0.37687]
[1727200383420,1.97247156,2653.6,2653.3,0.94227]
[1727200383421,1.97239298,2653.6,2653.3,0.94227]
[1727200383626,1.47925834,2653.4,2653.3,1.31917]
[1727200383826,1.47928524,2653.5,2653.3,0.94227]
[1727200384124,1.47928524,2653.5,2653.4,0.37689]
[1727200384332,1.97239298,2653.7,2653.6,0.37686]
[1727200384525,1.97225527,2653.7,2653.6,0.37685]
[1727200384731,2.84149099,2653.8,2653.6,0.37685]
[1727200384936,2.84149099,2653.8,2653.7,0.37685]
[1727200384937,2.46466099,2653.8,2653.7,0.37685]
[1727200385232,3.70818099,2653.9,2653.7,0.37685]
[1727200385429,1.97207385,2653.8,2653.4,0.94223]
[1727200385630,1.97207385,2653.8,2653.5,0.37687]
[1727200385631,1.47905489,2653.6,2653.5,0.37687]
[1727200385930,1.97207385,2653.7,2653.6,0.37686]
[1727200386532,1.97201456,2653.8,2653.7,0.37685]
[1727200388232,2.34884456,2653.8,2653.6,0.37686]
[1727200388435,1.97201456,2653.7,2653.6,0.37686]
[1727200388732,0.37687,2653.6,2653.4,4.68468]
[1727200388936,1.47891068,2653.5,2653.4,3.58468]
[1727200389235,2.34888456,2653.6,2653.4,3.58469]
[1727200389432,0.37691,2653.3,2653.1,3.58473]
[1727200389633,1.23512,2653.2,2653.1,3.2078]
[1727200389832,2.71418902,2653.2,2653.1,3.2078]
[1727200390233,0.37693,2653.1,2652.9,0.37696]
[1727200390452,1.47924455,2653.1,2652.9,1.47696]
[1727200390736,1.47922877,2653.1,2653.0,0.37695]
[1727200390929,0.98614184,2653.1,2653.0,0.37695]
[1727200391536,0.37695,2653.0,2652.8,1.47697]
[1727200391733,1.47922877,2653.1,2652.9,0.37696]
[1727200391931,0.37695,2653.0,2652.9,0.37696]
[1727200392130,1.47922877,2653.1,2652.8,1.47696]
[1727200392332,0.9861932,2652.9,2652.8,4.12696]
[1727200392732,0.9861932,2652.9,2652.8,3.02696]
[1727200392933,0.9861932,2652.9,2652.8,4.12696]
[1727200395339,0.9861932,2653.0,2652.9,0.37696]
[1727200395542,0.9861932,2653.1,2653.0,0.37695]
[1727200395843,2.71434877,2653.2,2653.0,0.37695]
[1727200396138,2.71434877,2653.2,2652.8,1.1]
[1727200396139,2.33742877,2653.2,2652.8,1.1]
[1727200396338,0.98635002,2652.9,2652.8,1.47697]
[1727200396539,1.36331002,2652.9,2652.8,1.1]
[1727200396732,1.36331002,2652.9,2652.8,1.47697]
[1727200396934,1.47922877,2653.0,2652.8,1.47697]
[1727200396935,1.85617877,2653.0,2652.8,1.47697]
[1727200397131,1.47922877,2653.0,2652.9,0.37696]
[1727200397331,1.47922877,2653.0,2652.8,1.1]
[1727200397639,0.98632644,2652.9,2652.8,1.47696]
[1727200397841,1.47922877,2653.0,2652.7,1.085]
[1727200398034,0.37696,2652.9,2652.8,0.37697]
[1727200399037,1.47922877,2653.0,2652.8,0.37697]
[1727200399344,0.37697,2652.9,2652.7,3.02698]
[1727200399531,1.36326266,2652.8,2652.7,2.65]
[1727200399839,1.47922877,2652.8,2652.3,3.2078]
[1727200400032,0.98641221,2652.4,2652.0,1.46208]
[1727200400233,1.79157221,2652.3,2652.0,1.46208]
[1727200400432,0.98641221,2652.2,2652.0,0.37709]
[1727200400631,1.40951221,2652.2,2652.1,0.37707]
[1727200400936,0.4231,2652.2,2652.1,3.02707]
[1727200401842,0.4231,2652.2,2652.1,2.65]
[1727200402835,1.40951221,2652.2,2652.1,2.65]
[1727200403035,1.78657221,2652.2,2652.1,2.65]
[1727200403335,0.4231,2652.2,2652.1,2.65]
[1727200403738,0.80016,2652.2,2652.1,2.65]
[1727200403930,0.4231,2652.2,2652.1,2.65]
[1727200404540,5.17991221,2652.2,2651.6,3.2078]
[1727200404749,3.2078,2652.0,2651.6,1.086]
[1727200404940,0.98641221,2651.8,2651.3,3.2078]
[1727200405141,0.37718,2651.4,2651.1,0.37721]
[1727200405640,0.98641221,2651.5,2651.2,0.3772]
[1727200405641,1.78448221,2651.5,2651.2,0.3772]
[1727200405944,0.37718,2651.4,2651.1,0.37721]
[1727200406143,0.37719,2651.4,2651.1,0.37721]